[Event "XIX Najdorf Memorial 2019"]
[Site "Warsaw"]
[Date "2019.07.14"]
[Round "9.25"]
[White "Adamski, Jan"]
[Black "Miroshnichenko, Pavel"]
[Result "1/2-1/2"]
[ECO "A04"]
[WhiteElo "2183"]
[BlackElo "2300"]
[Annotator "ChessBase"]
[PlyCount "65"]
[EventDate "2019.07.06"]
[EventType "swiss"]
[EventCountry "POL"]
[SourceTitle "playchess.com"]
[Source "ChessBase"]
[SourceQuality "1"]
[TimeControl "40/5400+30:1800+30"]

1. Nf3 {[%emt 0:00:00]} c5 {[%emt 0:00:07]} 2. c4 {[%emt 0:00:51]} Nc6 {[%emt 0:00:06]} 3. Nc3 {[%emt 0:02:15]} g6 {[%emt 0:02:35]} 4. e3 {[%emt 0:01:06]} Bg7 {[%emt 0:00:21]} 5. d4 {[%emt 0:00:06]} cxd4 {[%emt 0:02:46]} 6. exd4 {[%emt 0:00:09]} d6 {[%emt 0:00:15]} 7. Be2 {[%emt 0:04:06]} Bg4 {[%emt 0:05:18]} 8. O-O {[%emt 0:05:33]} Nh6 {[%emt 0:05:41]} 9. d5 {[%emt 0:03:05]} Bxf3 {[%emt 0:00:39]} 10. Bxf3 {[%emt 0:00:03]} Ne5 {[%emt 0:01:18]} 11. Be4 {[%emt 0:07:41]} O-O {[%emt 0:11:13]} 12. b3 {[%emt 0:02:33]} a6 {[%emt 0:07:23]} 13. a4 {[%emt 0:04:26]} Qb6 {[%emt 0:02:38]} 14. a5 {[%emt 0:04:35]} Qc7 {[%emt 0:06:14]} 15. Bd2 {[%emt 0:09:34]} f5 {[%emt 0:06:07]} 16. Bc2 {[%emt 0:10:44]} Nhg4 {[%emt 0:02:36]} 17. h3 {[%emt 0:05:18]} Nf6 {[%emt 0:04:31]} 18. Ne2 {[%emt 0:03:33]} Nh5 {[%emt 0:08:21]} 19. f4 {[%emt 0:06:13]} Nd7 {[%emt 0:03:09]} 20. Ra2 {[%emt 0:00:50]} Qc5+ {[%emt 0:03:36]} 21. Kh2 {[%emt 0:00:38]} Rae8 {[%emt 0:00:39]} 22. Rf3 {[%emt 0:04:09]} Ndf6 {[%emt 0:03:02]} 23. Be3 {[%emt 0:01:17]} Qc8 {[%emt 0:00:20]} 24. Nd4 {[%emt 0:06:09]} Ne4 {[%emt 0:04:58]} 25. Bxe4 {[%emt 0:01:25]} fxe4 {[%emt 0:00:05]} 26. Rf1 {[%emt 0:00:20]} e5 {[%emt 0:00:56]} 27. dxe6 {[%emt 0:00:55]} Bh6 {[%emt 0:06:19]} 28. g3 {[%emt 0:07:03]} Ng7 {[%emt 0:01:48]} 29. Rd2 {[%emt 0:00:34]} Qc7 {[%emt 0:00:26]} 30. Qb1 {[%emt 0:04:28]} Nxe6 {[%emt 0:03:41]} 31. Nxe6 {[%emt 0:00:10]} Rxe6 {[%emt 0:00:05]} 32. Rd5 {[%emt 0:00:14]} Bg7 {[%emt 0:01:32]} 33. Qc2 {[%emt 0:00:38]} 1/2-1/2

[Event "XIX Najdorf Memorial 2019"]
[Site "Warsaw"]
[Date "2019.07.14"]
[Round "9.26"]
[White "Rosicki, Marcin"]
[Black "Sowul, Bartosz"]
[Result "0-1"]
[ECO "B39"]
[WhiteElo "2026"]
[BlackElo "2210"]
[Annotator "ChessBase"]
[PlyCount "110"]
[EventDate "2019.07.06"]
[EventType "swiss"]
[EventCountry "POL"]
[SourceTitle "playchess.com"]
[Source "ChessBase"]
[SourceQuality "1"]
[TimeControl "40/5400+30:1800+30"]

1. e4 {[%emt 0:00:00]} c5 {[%emt 0:00:00]} 2. c4 {[%emt 0:00:00]} Nc6 {[%emt 0:00:00]} 3. Ne2 {[%emt 0:00:00]} g6 {[%emt 0:00:05]} 4. d4 {[%emt 0:00:00]} cxd4 {[%emt 0:00:09]} 5. Nxd4 {[%emt 0:00:03]} Bg7 {[%emt 0:00:11]} 6. Be3 {[%emt 0:00:06]} Nf6 {[%emt 0:00:06]} 7. Nc3 {[%emt 0:00:05]} Ng4 {[%emt 0:00:06]} 8. Qxg4 {[%emt 0:01:00]} Nxd4 {[%emt 0:00:07]} 9. Qd1 {[%emt 0:00:04]} e5 {[%emt 0:00:08]} 10. Bd3 {[%emt 0:00:08]} O-O {[%emt 0:02:29]} 11. O-O {[%emt 0:01:13]} b6 {[%emt 0:03:06]} 12. Ne2 {[%emt 0:08:39]} Bb7 {[%emt 0:07:51]} 13. f3 {[%emt 0:06:31]} Rc8 {[%emt 0:04:13]} 14. Rc1 {[%emt 0:01:29]} Re8 {[%emt 0:04:08]} 15. b3 {[%emt 0:01:51]} Bc6 {[%emt 0:05:39]} 16. Bxd4 {[%emt 0:10:43]} exd4 {[%emt 0:00:11]} 17. Bb1 {[%emt 0:00:04]} Qg5 {[%emt 0:16:28]} 18. Kh1 {[%emt 0:00:46]} Qh6 {[%emt 0:10:37]} 19. g3 {[%emt 0:07:40]} Re6 {[%emt 0:04:11]} 20. Nf4 {[%emt 0:13:22]} Re5 {[%emt 0:02:09]} 21. Nd5 {[%emt 0:04:49]} Rce8 {[%emt 0:03:58]} 22. Bd3 {[%emt 0:17:05]} d6 {[%emt 0:07:22]} 23. Rc2 {[%emt 0:00:59]} Qh3 {[%emt 0:08:58]} 24. Nc7 {[%emt 0:10:27]} Rc8 {[%emt 0:03:15]} 25. Nd5 {[%emt 0:00:04]} Rce8 {[%emt 0:00:13]} 26. Nc7 {[%emt 0:00:06]} Rc8 {[%emt 0:00:04]} 27. Nd5 {[%emt 0:00:10]} Bxd5 {[%emt 0:01:10]} 28. cxd5 {[%emt 0:00:07]} Rc3 {[%emt 0:00:20]} 29. Qe2 {[%emt 0:09:59]} Re7 {[%emt 0:07:14]} 30. Rfc1 {[%emt 0:02:01]} h5 {[%emt 0:01:08]} 31. Rxc3 {[%emt 0:01:37]} dxc3 {[%emt 0:00:05]} 32. Qf1 {[%emt 0:00:36]} Qc8 {[%emt 0:00:42]} 33. Qf2 {[%emt 0:01:02]} Rc7 {[%emt 0:04:49]} 34. Qe2 {[%emt 0:01:15]} Qd8 {[%emt 0:00:37]} 35. Qe3 {[%emt 0:01:15]} h4 {[%emt 0:01:23]} 36. Kg2 {[%emt 0:00:16]} Qf6 {[%emt 0:00:43]} 37. Rc2 {[%emt 0:01:04]} Rc8 {[%emt 0:03:17]} 38. Bb5 {[%emt 0:00:34]} hxg3 {[%emt 0:00:40]} 39. hxg3 {[%emt 0:00:05]} Rc5 {[%emt 0:00:18]} 40. Bc6 {[%emt 0:00:00]} g5 {[%emt 0:00:00]} 41. Qd3 {[%emt 0:07:03]} a5 {[%emt 0:11:50]} 42. a3 {[%emt 0:01:37]} Qd4 {[%emt 0:06:15]} 43. Qxd4 {[%emt 0:01:05]} Bxd4 {[%emt 0:00:07]} 44. Kf1 {[%emt 0:16:39]} b5 {[%emt 0:02:09]} 45. Ke2 {[%emt 0:00:29]} b4 {[%emt 0:00:34]} 46. a4 {[%emt 0:00:03]} Be5 {[%emt 0:03:24]} 47. g4 {[%emt 0:01:58]} Kg7 {[%emt 0:05:00]} 48. Kd3 {[%emt 0:00:59]} Kf6 {[%emt 0:00:32]} 49. Rc1 {[%emt 0:00:14]} Bf4 {[%emt 0:00:11]} 50. Rc2 {[%emt 0:00:13]} Ke5 {[%emt 0:01:01]} 51. Rg2 {[%emt 0:00:17]} Bg3 {[%emt 0:01:14]} 52. Kc2 {[%emt 0:01:42]} Kf4 {[%emt 0:02:27]} 53. Rg1 {[%emt 0:00:04]} Kxf3 {[%emt 0:01:21]} 54. Rh1 {[%emt 0:00:04]} Kxg4 {[%emt 0:00:43]} 55. Rh7 {[%emt 0:00:06]} f6 {[%emt 0:00:10]} 0-1

[Event "XIX Najdorf Memorial 2019"]
[Site "Warsaw"]
[Date "2019.07.14"]
[Round "9.27"]
[White "Kopylov, Daniel"]
[Black "Lukasiewicz, Krzysztof"]
[Result "0-1"]
[ECO "B13"]
[WhiteElo "2209"]
[BlackElo "2172"]
[Annotator "ChessBase"]
[PlyCount "88"]
[EventDate "2019.07.06"]
[EventType "swiss"]
[EventCountry "POL"]
[SourceTitle "playchess.com"]
[Source "ChessBase"]
[SourceQuality "1"]
[TimeControl "40/5400+30:1800+30"]

1. e4 {[%emt 0:00:00]} c6 {[%emt 0:00:00]} 2. d4 {[%emt 0:00:02]} d5 {[%emt 0:00:00]} 3. exd5 {[%emt 0:00:29]} cxd5 {[%emt 0:00:00]} 4. Bd3 {[%emt 0:00:13]} Nc6 {[%emt 0:00:00]} 5. c3 {[%emt 0:00:05]} Qc7 {[%emt 0:00:00]} 6. Ne2 {[%emt 0:00:33]} Bg4 {[%emt 0:00:00]} 7. O-O {[%emt 0:00:17]} e6 {[%emt 0:00:03]} 8. Qe1 {[%emt 0:00:10]} Bxe2 {[%emt 0:00:06]} 9. Qxe2 {[%emt 0:00:05]} Bd6 {[%emt 0:00:04]} 10. h3 {[%emt 0:00:26]} Nf6 {[%emt 0:01:45]} 11. Nd2 {[%emt 0:00:17]} O-O {[%emt 0:04:57]} 12. Nf3 {[%emt 0:00:20]} a6 {[%emt 0:01:31]} 13. a4 {[%emt 0:01:32]} Na5 {[%emt 0:21:37]} 14. Bg5 {[%emt 0:04:22]} Nd7 {[%emt 0:02:40]} 15. Rae1 {[%emt 0:07:12]} Nc4 {[%emt 0:05:02]} 16. Bc1 {[%emt 0:01:33]} b5 {[%emt 0:03:44]} 17. Ng5 {[%emt 0:20:50]} Nf6 {[%emt 0:03:08]} 18. b3 {[%emt 0:09:40]} Na5 {[%emt 0:02:16]} 19. b4 {[%emt 0:00:26]} Nb3 {[%emt 0:08:10]} 20. axb5 {[%emt 0:28:40]} Nxc1 {[%emt 0:10:18]} 21. Rxc1 {[%emt 0:06:01]} Bf4 {[%emt 0:00:54]} 22. Nxe6 {[%emt 0:04:32]} fxe6 {[%emt 0:01:42]} 23. Qxe6+ {[%emt 0:00:03]} Kh8 {[%emt 0:04:08]} 24. Rc2 {[%emt 0:00:58]} axb5 {[%emt 0:00:09]} 25. Bxb5 {[%emt 0:01:27]} Bd6 {[%emt 0:05:29]} 26. Qf5 {[%emt 0:07:50]} Ra3 {[%emt 0:02:20]} 27. c4 {[%emt 0:00:31]} dxc4 {[%emt 0:06:09]} 28. Rxc4 {[%emt 0:00:48]} Qe7 {[%emt 0:00:07]} 29. Rc8 {[%emt 0:02:21]} Bxb4 {[%emt 0:01:13]} 30. Rxf8+ {[%emt 0:00:26]} Qxf8 {[%emt 0:00:05]} 31. Rc1 {[%emt 0:00:22]} Rc3 {[%emt 0:00:23]} 32. Ra1 {[%emt 0:00:49]} Bd6 {[%emt 0:01:26]} 33. Bd3 {[%emt 0:02:12]} g6 {[%emt 0:04:40]} 34. Qf3 {[%emt 0:00:11]} Qe7 {[%emt 0:00:10]} 35. Qa8+ {[%emt 0:00:59]} Kg7 {[%emt 0:00:18]} 36. Bf1 {[%emt 0:00:14]} Ra3 {[%emt 0:03:49]} 37. Rxa3 {[%emt 0:00:23]} Bxa3 {[%emt 0:00:04]} 38. g3 {[%emt 0:00:22]} Bb2 {[%emt 0:00:47]} 39. d5 {[%emt 0:00:47]} Bd4 {[%emt 0:00:08]} 40. Qa2 {[%emt 0:00:00]} Ne4 {[%emt 0:00:00]} 41. Qe2 {[%emt 0:03:31]} Qf6 {[%emt 0:08:04]} 42. Kh2 {[%emt 0:01:22]} Nc3 {[%emt 0:02:41]} 43. Qd2 {[%emt 0:00:57]} Bxf2 {[%emt 0:01:44]} 44. Kg2 {[%emt 0:00:32]} Bxg3 {[%emt 0:00:34]} 0-1

[Event "XIX Najdorf Memorial 2019"]
[Site "Warsaw"]
[Date "2019.07.14"]
[Round "9.28"]
[White "Golecki, Jan"]
[Black "Malovanyi, Yulian"]
[Result "1-0"]
[ECO "B30"]
[WhiteElo "1947"]
[BlackElo "2204"]
[Annotator "NA"]
[PlyCount "121"]
[EventDate "2019.07.06"]
[EventType "swiss"]
[EventCountry "POL"]
[SourceTitle "playchess.com"]
[Source "ChessBase"]
[SourceQuality "1"]
[TimeControl "40/5400+30:1800+30"]

1. e4 {[%emt 0:02:32]} c5 {[%emt 0:00:00]} 2. Nf3 {[%emt 0:00:06]} Nc6 {[%emt 0:00:44]} 3. Bb5 {[%emt 0:00:13]} d6 {[%emt 0:00:07]} 4. d4 {[%emt 0:00:19]} cxd4 {[%emt 0:00:20]} 5. Qxd4 {[%emt 0:00:06]} Bd7 {[%emt 0:00:44]} 6. Qd3 {[%emt 0:00:06]} a6 {[%emt 0:06:05]} 7. Bxc6 {[%emt 0:00:06]} Bxc6 {[%emt 0:02:46]} 8. Nc3 {[%emt 0:00:08]} Nf6 {[%emt 0:03:38]} 9. Bg5 {[%emt 0:00:07]} e6 {[%emt 0:02:09]} 10. O-O-O {[%emt 0:00:10]} Be7 {[%emt 0:02:29]} 11. Nd4 {[%emt 0:00:06]} O-O {[%emt 0:03:56]} 12. f4 {[%emt 0:05:56]} h6 {[%emt 0:11:25]} 13. Bxf6 {[%emt 0:07:16]} Bxf6 {[%emt 0:01:30]} 14. Nxc6 {[%emt 0:01:42]} bxc6 {[%emt 0:00:10]} 15. Qxd6 {[%emt 0:01:12]} Bxc3 {[%emt 0:01:09]} 16. Qxd8 {[%emt 0:00:36]} Bxb2+ {[%emt 0:00:31]} 17. Kxb2 {[%emt 0:00:05]} Rfxd8 {[%emt 0:00:15]} 18. Rd3 {[%emt 0:06:54]} Kf8 {[%emt 0:01:41]} 19. Rhd1 {[%emt 0:00:41]} Ke7 {[%emt 0:01:12]} 20. Kc3 {[%emt 0:09:24]} Rxd3+ {[%emt 0:02:50]} 21. Rxd3 {[%emt 0:00:37]} Rb8 {[%emt 0:07:10]} 22. Rd4 {[%emt 0:06:38]} a5 {[%emt 0:10:46]} 23. Kd3 {[%emt 0:16:38]} Rb1 {[%emt 0:12:13]} 24. Ra4 {[%emt 0:00:57]} Rg1 {[%emt 0:00:40]} 25. g3 {[%emt 0:00:22]} Rg2 {[%emt 0:00:10]} 26. Rxa5 {[%emt 0:00:32]} Rxh2 {[%emt 0:00:07]} 27. Ra7+ {[%emt 0:07:11]} Kf6 {[%emt 0:00:15]} 28. e5+ {[%emt 0:21:43]} Kg6 {[%emt 0:00:02]} 29. Rc7 {[%emt 0:01:29]} Rg2 {[%emt 0:02:14]} 30. Rxc6 {[%emt 0:00:11]} Kf5 {[%emt 0:04:36]} 31. a4 {[%emt 0:04:02]} Rxg3+ {[%emt 0:00:07]} 32. Kc4 {[%emt 0:00:08]} Ra3 {[%emt 0:04:23]} 33. Kb5 {[%emt 0:01:42]} h5 {[%emt 0:01:25]} 34. Rc7 {[%emt 0:02:47]} Kg6 {[%emt 0:09:45]} 35. Rc8 {[%emt 0:00:07]} f6 {[%emt 0:01:31]} 36. exf6 {[%emt 0:00:39]} gxf6 {[%emt 0:00:25]} 37. a5 {[%emt 0:01:24]} h4 {[%emt 0:00:39]} 38. Rh8 {[%emt 0:00:12]} Ra2 {[%emt 0:02:58]} 39. c4 {[%emt 0:00:54]} Rb2+ {[%emt 0:00:24]} 40. Kc6 {[%emt 0:00:00]} Ra2 {[%emt 0:00:00]} 41. Kb6 {[%emt 0:02:13]} Rb2+ {[%emt 0:01:04]} 42. Ka7 {[%emt 0:00:41]} Rc2 {[%emt 0:02:10]} 43. Rxh4 {[%emt 0:03:37]} f5 {[%emt 0:04:22]} 44. Kb6 {[%emt 0:08:38]} Rxc4 {[%emt 0:00:40]} 45. a6 {[%emt 0:01:25]} Rb4+ {[%emt 0:02:41]} 46. Kc5 {[%emt 0:02:21]} Rb1 {[%emt 0:10:29]} 47. Rh3 {[%emt 0:04:57]} Ra1 {[%emt 0:00:27]} 48. Kb5 {[%emt 0:00:48]} Ra2 {[%emt 0:01:51]} 49. Re3 {[%emt 0:01:05]} Kh5 {[%emt 0:01:01]} 50. Rb3 {[%emt 0:02:00]} e5 {[%emt 0:03:07]} 51. fxe5 {[%emt 0:00:18]} Re2 {[%emt 0:00:37]} 52. a7 {[%emt 0:05:53]} Rxe5+ {[%emt 0:00:25]} 53. Ka4 {[%emt 0:00:33]} Re4+ {[%emt 0:00:35]} 54. Ka3 {[%emt 0:00:12]} Re1 {[%emt 0:01:00]} 55. Ka2 {[%emt 0:00:05]} Re2+ {[%emt 0:01:36]} 56. Rb2 {[%emt 0:00:15]} Re8 {[%emt 0:00:13]} 57. Rb8 {[%emt 0:00:03]} Re2+ {[%emt 0:00:11]} 58. Kb1 {[%emt 0:00:06]} Re1+ {[%emt 0:00:06]} 59. Kc2 {[%emt 0:00:21]} Ra1 {[%emt 0:00:25]} 60. a8=Q {[%emt 0:00:05]} Rxa8 {[%emt 0:00:12]} 61. Rxa8 {[%emt 0:00:06]} 1-0

[Event "XIX Najdorf Memorial 2019"]
[Site "Warsaw"]
[Date "2019.07.14"]
[Round "9.29"]
[White "Zaleski, Lukasz"]
[Black "Malynovskyi, Rostyslav"]
[Result "1/2-1/2"]
[ECO "B40"]
[WhiteElo "2185"]
[BlackElo "2156"]
[Annotator "ChessBase"]
[PlyCount "92"]
[EventDate "2019.07.06"]
[EventType "swiss"]
[EventCountry "POL"]
[SourceTitle "playchess.com"]
[Source "ChessBase"]
[SourceQuality "1"]
[TimeControl "40/5400+30:1800+30"]

1. e4 {[%emt 0:06:44]} c5 {[%emt 0:00:00]} 2. Nf3 {[%emt 0:00:06]} e6 {[%emt 0:00:00]} 3. g3 {[%emt 0:00:17]} Nc6 {[%emt 0:00:00]} 4. Bg2 {[%emt 0:00:03]} Nf6 {[%emt 0:00:03]} 5. Nc3 {[%emt 0:00:38]} d6 {[%emt 0:03:47]} 6. d4 {[%emt 0:00:12]} cxd4 {[%emt 0:00:05]} 7. Nxd4 {[%emt 0:00:03]} Bd7 {[%emt 0:00:19]} 8. O-O {[%emt 0:00:34]} a6 {[%emt 0:04:54]} 9. a4 {[%emt 0:07:32]} Be7 {[%emt 0:00:16]} 10. Nxc6 {[%emt 0:01:25]} Bxc6 {[%emt 0:00:26]} 11. a5 {[%emt 0:00:26]} O-O {[%emt 0:02:32]} 12. Be3 {[%emt 0:02:50]} Nd7 {[%emt 0:00:43]} 13. Na4 {[%emt 0:00:14]} Rb8 {[%emt 0:18:06]} 14. Ba7 {[%emt 0:05:22]} Ra8 {[%emt 0:01:39]} 15. Bd4 {[%emt 0:00:53]} Rb8 {[%emt 0:13:21]} 16. Nb6 {[%emt 0:00:31]} Nc5 {[%emt 0:00:59]} 17. Re1 {[%emt 0:21:44]} Qc7 {[%emt 0:07:16]} 18. b4 {[%emt 0:06:34]} e5 {[%emt 0:01:32]} 19. Bb2 {[%emt 0:12:43]} Nd7 {[%emt 0:04:04]} 20. Nc4 {[%emt 0:05:13]} f5 {[%emt 0:10:06]} 21. Ne3 {[%emt 0:01:34]} fxe4 {[%emt 0:03:40]} 22. c4 {[%emt 0:06:07]} Kh8 {[%emt 0:02:59]} 23. Qc2 {[%emt 0:02:20]} b6 {[%emt 0:08:03]} 24. axb6 {[%emt 0:04:50]} Qxb6 {[%emt 0:00:06]} 25. Bc3 {[%emt 0:00:16]} Nf6 {[%emt 0:02:18]} 26. Ra5 {[%emt 0:01:44]} Bb7 {[%emt 0:01:00]} 27. Qb2 {[%emt 0:04:42]} Bd8 {[%emt 0:04:57]} 28. Rd1 {[%emt 0:01:24]} Qc6 {[%emt 0:01:12]} 29. Ra2 {[%emt 0:00:28]} Bb6 {[%emt 0:00:22]} 30. b5 {[%emt 0:05:52]} axb5 {[%emt 0:00:42]} 31. cxb5 {[%emt 0:00:02]} Qc7 {[%emt 0:00:43]} 32. Bb4 {[%emt 0:00:44]} Rfd8 {[%emt 0:02:54]} 33. Nf5 {[%emt 0:01:33]} Nd5 {[%emt 0:03:19]} 34. Bxe4 {[%emt 0:00:48]} Nxb4 35. Qxb4 {[%emt 0:00:30]} Bc5 {[%emt 0:01:52]} 36. Qe1 d5 {[%emt 0:01:12]} 37. Bg2 {[%emt 0:00:37]} e4 {[%emt 0:01:14]} 38. Rc2 {[%emt 0:00:34]} Qb6 {[%emt 0:00:49]} 39. Nxg7 {[%emt 0:00:47]} Kxg7 {[%emt 0:01:02]} 40. Qc3+ {[%emt 0:00:06]} Qf6 {[%emt 0:00:05]} 41. Qxf6+ {[%emt 0:00:26]} Kxf6 {[%emt 0:00:00]} 42. Rxc5 {[%emt 0:00:05]} Rbc8 {[%emt 0:00:00]} 43. Rxc8 {[%emt 0:03:01]} Rxc8 {[%emt 0:00:14]} 44. Re1 {[%emt 0:26:02]} Rc5 {[%emt 0:04:48]} 45. f3 {[%emt 0:00:15]} exf3 {[%emt 0:00:18]} 46. Bxf3 {[%emt 0:00:05]} Rxb5 {[%emt 0:00:05]} 1/2-1/2

[Event "XIX Najdorf Memorial 2019"]
[Site "Warsaw"]
[Date "2019.07.14"]
[Round "9.30"]
[White "Kokoszczynski, Jan"]
[Black "Sliwerski, Radoslaw"]
[Result "1-0"]
[ECO "B53"]
[WhiteElo "2238"]
[BlackElo "2010"]
[Annotator "ChessBase"]
[PlyCount "85"]
[EventDate "2019.07.06"]
[EventType "swiss"]
[EventCountry "POL"]
[SourceTitle "playchess.com"]
[Source "ChessBase"]
[SourceQuality "1"]
[TimeControl "40/5400+30:1800+30"]

1. e4 {[%emt 0:00:09]} c5 {[%emt 0:00:00]} 2. Nf3 {[%emt 0:00:04]} d6 {[%emt 0:00:00]} 3. d4 {[%emt 0:01:03]} cxd4 {[%emt 0:00:00]} 4. Qxd4 {[%emt 0:03:08]} Nc6 {[%emt 0:00:40]} 5. Bb5 {[%emt 0:00:08]} Bd7 {[%emt 0:00:54]} 6. Qd3 {[%emt 0:02:54]} Nf6 {[%emt 0:03:53]} 7. Nc3 {[%emt 0:00:22]} g6 {[%emt 0:01:52]} 8. Bg5 {[%emt 0:01:40]} Bg7 {[%emt 0:00:40]} 9. O-O-O {[%emt 0:04:34]} O-O {[%emt 0:03:05]} 10. Bxc6 {[%emt 0:03:26]} Bxc6 {[%emt 0:02:46]} 11. Nd4 {[%emt 0:02:58]} Re8 {[%emt 0:05:12]} 12. Bxf6 {[%emt 0:07:15]} Bxf6 {[%emt 0:00:29]} 13. f4 {[%emt 0:00:08]} Qb6 {[%emt 0:08:06]} 14. g4 {[%emt 0:08:14]} Qxd4 {[%emt 0:04:33]} 15. Qxd4 {[%emt 0:00:07]} Bxd4 {[%emt 0:00:04]} 16. Rxd4 {[%emt 0:00:06]} e5 {[%emt 0:00:37]} 17. Rxd6 {[%emt 0:16:53]} exf4 {[%emt 0:04:56]} 18. Rf1 {[%emt 0:01:24]} Bxe4 {[%emt 0:05:59]} 19. Rxf4 {[%emt 0:00:10]} Bc6 {[%emt 0:00:28]} 20. b4 {[%emt 0:00:30]} a6 {[%emt 0:05:46]} 21. a4 {[%emt 0:01:36]} Rad8 {[%emt 0:06:35]} 22. Rxd8 {[%emt 0:06:23]} Rxd8 {[%emt 0:04:11]} 23. b5 {[%emt 0:00:15]} axb5 {[%emt 0:00:12]} 24. axb5 {[%emt 0:00:05]} Bg2 {[%emt 0:03:49]} 25. Nd1 {[%emt 0:12:08]} g5 {[%emt 0:01:40]} 26. Rf5 {[%emt 0:03:29]} Rd5 {[%emt 0:02:17]} 27. Rxd5 {[%emt 0:08:20]} Bxd5 {[%emt 0:00:03]} 28. Ne3 {[%emt 0:00:04]} Bf3 {[%emt 0:01:03]} 29. Kd2 {[%emt 0:00:23]} Kg7 {[%emt 0:05:11]} 30. Kd3 {[%emt 0:00:20]} Kf6 {[%emt 0:00:11]} 31. Kd4 {[%emt 0:00:12]} Ke6 {[%emt 0:00:25]} 32. c4 {[%emt 0:03:13]} h5 {[%emt 0:00:39]} 33. gxh5 {[%emt 0:03:14]} Bxh5 {[%emt 0:00:02]} 34. c5 {[%emt 0:01:11]} Bf3 {[%emt 0:01:42]} 35. b6 {[%emt 0:07:29]} f5 {[%emt 0:02:21]} 36. Nc4 {[%emt 0:00:04]} f4 {[%emt 0:01:54]} 37. Ne5 {[%emt 0:00:06]} Bg2 {[%emt 0:04:33]} 38. c6 {[%emt 0:00:08]} Kd6 {[%emt 0:00:34]} 39. c7 {[%emt 0:02:55]} Bh3 {[%emt 0:00:02]} 40. Nf7+ {[%emt 0:00:00]} Kc6 {[%emt 0:00:00]} 41. Nxg5 {[%emt 0:02:25]} Bc8 {[%emt 0:06:26]} 42. Ke5 {[%emt 0:02:47]} Kxb6 {[%emt 0:02:48]} 43. h4 {[%emt 0:13:56]} 1-0

[Event "XIX Najdorf Memorial 2019"]
[Site "Warsaw"]
[Date "2019.07.14"]
[Round "9.31"]
[White "Jarocka, Liwia"]
[Black "Lisowski, Krzysztof"]
[Result "0-1"]
[ECO "B34"]
[WhiteElo "2102"]
[BlackElo "2187"]
[Annotator "ChessBase"]
[PlyCount "100"]
[EventDate "2019.07.06"]
[EventType "swiss"]
[EventCountry "POL"]
[SourceTitle "playchess.com"]
[Source "ChessBase"]
[SourceQuality "1"]
[TimeControl "40/5400+30:1800+30"]

1. e4 {[%emt 0:00:00]} c5 {[%emt 0:00:00]} 2. Nf3 {[%emt 0:00:00]} Nc6 {[%emt 0:00:00]} 3. d4 {[%emt 0:00:17]} cxd4 {[%emt 0:00:00]} 4. Nxd4 {[%emt 0:00:05]} Nf6 {[%emt 0:00:00]} 5. Nc3 {[%emt 0:00:10]} e5 {[%emt 0:00:00]} 6. Ndb5 {[%emt 0:00:21]} d6 {[%emt 0:00:01]} 7. Bg5 {[%emt 0:00:08]} a6 {[%emt 0:00:06]} 8. Bxf6 {[%emt 0:00:11]} gxf6 {[%emt 0:00:12]} 9. Na3 {[%emt 0:00:08]} f5 {[%emt 0:27:16]} 10. exf5 {[%emt 0:16:04]} Bxf5 {[%emt 0:00:27]} 11. Nd5 {[%emt 0:00:56]} Bg7 {[%emt 0:04:23]} 12. Nc4 {[%emt 0:04:55]} O-O {[%emt 0:15:34]} 13. Nde3 {[%emt 0:10:00]} Bg6 {[%emt 0:07:43]} 14. Qxd6 {[%emt 0:04:47]} Qe8 {[%emt 0:08:45]} 15. O-O-O {[%emt 0:15:21]} b5 {[%emt 0:06:12]} 16. Nb6 {[%emt 0:03:58]} Rd8 {[%emt 0:13:51]} 17. Qc5 {[%emt 0:00:14]} Nd4 {[%emt 0:01:35]} 18. Nbd5 {[%emt 0:09:49]} Qe6 {[%emt 0:05:12]} 19. c3 {[%emt 0:15:25]} Kh8 {[%emt 0:01:00]} 20. Qa3 {[%emt 0:05:09]} Rxd5 {[%emt 0:01:33]} 21. Nxd5 {[%emt 0:01:23]} Qxd5 {[%emt 0:00:29]} 22. Bd3 {[%emt 0:00:34]} Bxd3 {[%emt 0:03:18]} 23. Rxd3 {[%emt 0:00:03]} Qxg2 {[%emt 0:01:27]} 24. Rhd1 {[%emt 0:00:22]} Ne6 {[%emt 0:00:52]} 25. Qxa6 {[%emt 0:01:30]} Qxf2 {[%emt 0:00:29]} 26. Qxb5 {[%emt 0:00:24]} e4 {[%emt 0:00:36]} 27. Rg3 {[%emt 0:00:31]} e3 {[%emt 0:01:27]} 28. Qf1 {[%emt 0:01:32]} Qxf1 {[%emt 0:00:32]} 29. Rxf1 {[%emt 0:00:01]} Bh6 {[%emt 0:00:15]} 30. Re1 {[%emt 0:00:34]} f5 {[%emt 0:00:29]} 31. Rgxe3 {[%emt 0:00:59]} Nc5 {[%emt 0:00:47]} 32. Kc2 {[%emt 0:00:19]} Bxe3 {[%emt 0:00:21]} 33. Rxe3 {[%emt 0:00:01]} f4 {[%emt 0:00:18]} 34. Rf3 {[%emt 0:00:01]} Ne6 {[%emt 0:00:13]} 35. h4 {[%emt 0:00:19]} Kg7 {[%emt 0:00:13]} 36. Kd3 {[%emt 0:00:45]} Kg6 {[%emt 0:00:28]} 37. Ke4 {[%emt 0:00:17]} Kh5 {[%emt 0:00:15]} 38. Ke5 {[%emt 0:00:22]} Kg4 {[%emt 0:00:18]} 39. Rf1 {[%emt 0:00:13]} Nc5 {[%emt 0:00:45]} 40. b4 {[%emt 0:00:00]} Na4 {[%emt 0:00:00]} 41. c4 {[%emt 0:00:48]} f3 {[%emt 0:08:56]} 42. c5 {[%emt 0:00:17]} Kxh4 {[%emt 0:15:48]} 43. c6 {[%emt 0:00:50]} Kg3 {[%emt 0:00:22]} 44. c7 {[%emt 0:00:37]} Kg2 {[%emt 0:01:16]} 45. Rc1 {[%emt 0:00:12]} f2 {[%emt 0:00:36]} 46. Kd6 {[%emt 0:00:26]} f1=Q {[%emt 0:00:16]} 47. Rxf1 {[%emt 0:00:05]} Kxf1 {[%emt 0:00:09]} 48. Kc6 {[%emt 0:00:04]} h5 {[%emt 0:00:28]} 49. Kb5 {[%emt 0:00:27]} h4 {[%emt 0:01:07]} 50. Kxa4 {[%emt 0:00:07]} h3 {[%emt 0:00:07]} 0-1